[Event "Titled Tuesday Blitz April 26 Late 2022"]
[White "Ivanisevic, Ivan"]
[Black "Fedoseev, Vladimir"]
[WhiteFideId "912417"]
[BlackFideId "24130737"]
[WhiteElo "2495"]
[BlackElo "2726"]
[Result "0-1"]
[Round "02"]
[TimeControl "180+1"]
[Date "2022.04.26"]
[WhiteClock "0:00:05"]
[BlackClock "0:00:18"]

1. d4 {[%clk 0:03:00]}  Nf6 {[%clk 0:02:07]} 2. c4 {[%clk 0:03:00]}  g6 {[%clk 0:02:07]} 3. Nc3 {[%clk 0:02:58]}  d5 {[%clk 0:02:07]} 4. h4 {[%clk 0:02:59]}  c6 {[%clk 0:02:04]} 5. cxd5 {[%clk 0:02:56]}  cxd5 {[%clk 0:02:04]} 6. Bf4 {[%clk 0:02:57]}  Nc6 {[%clk 0:02:03]} 7. e3 {[%clk 0:02:56]}  Bg7 {[%clk 0:02:02]} 8. h5 {[%clk 0:02:56]}  Nxh5 {[%clk 0:02:00]} 9. Rxh5 {[%clk 0:02:56]}  gxh5 {[%clk 0:02:01]} 10. Qxh5 {[%clk 0:02:56]}  e5 {[%clk 0:01:35]} 11. dxe5 {[%clk 0:02:48]}  Be6 {[%clk 0:01:30]} 12. Nf3 {[%clk 0:02:41]}  Qb6 {[%clk 0:01:24]} 13. O-O-O {[%clk 0:02:28]}  O-O-O {[%clk 0:01:23]} 14. Bb5 {[%clk 0:02:23]}  Ne7 {[%clk 0:01:17]} 15. Nd4 {[%clk 0:02:13]}  Ng6 {[%clk 0:01:17]} 16. Bg3 {[%clk 0:02:09]}  Bf8 {[%clk 0:01:05]} 17. f4 {[%clk 0:02:01]}  Bb4 {[%clk 0:00:42]} 18. Na4 {[%clk 0:01:49]}  Qa5 {[%clk 0:00:39]} 19. f5 {[%clk 0:01:43]}  a6 {[%clk 0:00:38]} 20. fxe6 {[%clk 0:01:10]}  axb5 {[%clk 0:00:38]} 21. exf7 {[%clk 0:01:10]}  bxa4 {[%clk 0:00:37]} 22. Qf5+ {[%clk 0:01:02]}  Kb8 {[%clk 0:00:36]} 23. Kb1 {[%clk 0:00:50]}  Ka8 {[%clk 0:00:35]} 24. e6 {[%clk 0:00:44]}  a3 {[%clk 0:00:33]} 25. Qd3 {[%clk 0:00:38]}  Rc8 {[%clk 0:00:30]} 26. Nb5 {[%clk 0:00:31]}  axb2 {[%clk 0:00:29]} 27. Kxb2 {[%clk 0:00:18]}  Be7 {[%clk 0:00:27]} 28. Kb1 {[%clk 0:00:13]}  Rc4 {[%clk 0:00:22]} 29. Nc7+ {[%clk 0:00:05]}  Rxc7 {[%clk 0:00:22]} 30. Bxc7 {[%clk 0:00:06]}  Qxc7 {[%clk 0:00:22]} 31. Qxd5 {[%clk 0:00:06]}  Rd8 {[%clk 0:00:18]} 32. Qb3 {[%clk 0:00:05]}  Rxd1+ {[%clk 0:00:18]} 33. Qxd1 {[%clk 0:00:05]}  Qb6+ {[%clk 0:00:18]} 0-1


[Site "https://www.chess.com"]

[Event "Titled Tuesday Blitz April 26 Late 2022"]
[White "Jacobson, Aaron"]
[Black "Rosenberg, Evan S"]
[WhiteFideId "2089912"]
[BlackFideId "2019299"]
[WhiteElo "2265"]
[BlackElo "2334"]
[Result "1-0"]
[Round "02"]
[TimeControl "180+1"]
[Date "2022.04.26"]
[WhiteClock "0:01:45"]
[BlackClock "0:00:03"]

1. e4 {[%clk 0:03:00]}  e5 {[%clk 0:02:59]} 2. f4 {[%clk 0:03:00]}  d5 {[%clk 0:02:59]} 3. exd5 {[%clk 0:02:59]}  exf4 {[%clk 0:02:59]} 4. Nf3 {[%clk 0:02:59]}  Nf6 {[%clk 0:02:59]} 5. c4 {[%clk 0:02:58]}  c6 {[%clk 0:02:55]} 6. dxc6 {[%clk 0:02:55]}  Nxc6 {[%clk 0:02:55]} 7. d4 {[%clk 0:02:56]}  Bg4 {[%clk 0:02:48]} 8. d5 {[%clk 0:02:47]}  Bb4+ {[%clk 0:02:44]} 9. Nc3 {[%clk 0:02:44]}  Bxc3+ {[%clk 0:02:11]} 10. bxc3 {[%clk 0:02:45]}  Ne5 {[%clk 0:02:12]} 11. Be2 {[%clk 0:02:35]}  Nxf3+ {[%clk 0:02:05]} 12. Bxf3 {[%clk 0:02:35]}  Qe7+ {[%clk 0:01:58]} 13. Qe2 {[%clk 0:02:29]}  Bxf3 {[%clk 0:01:50]} 14. gxf3 {[%clk 0:02:25]}  Qxe2+ {[%clk 0:01:47]} 15. Kxe2 {[%clk 0:02:26]}  Nh5 {[%clk 0:01:43]} 16. Rb1 {[%clk 0:02:18]}  O-O-O {[%clk 0:01:38]} 17. Kd3 {[%clk 0:02:17]}  Rhe8 {[%clk 0:01:34]} 18. Bd2 {[%clk 0:02:17]}  g5 {[%clk 0:01:25]} 19. h4 {[%clk 0:02:10]}  Ng3 {[%clk 0:01:24]} 20. hxg5 {[%clk 0:02:11]}  Nxh1 {[%clk 0:01:23]} 21. Rxh1 {[%clk 0:02:12]}  b5 {[%clk 0:01:17]} 22. Bxf4 {[%clk 0:02:05]}  bxc4+ {[%clk 0:01:17]} 23. Kxc4 {[%clk 0:02:06]}  Kd7 {[%clk 0:01:02]} 24. Rxh7 {[%clk 0:02:03]}  Rc8+ {[%clk 0:00:47]} 25. Kd4 {[%clk 0:02:03]}  Ke7 {[%clk 0:00:47]} 26. g6 {[%clk 0:01:58]}  Rf8 {[%clk 0:00:43]} 27. Bh6 {[%clk 0:01:55]}  Rh8 {[%clk 0:00:22]} 28. Rxf7+ {[%clk 0:01:53]}  Ke8 {[%clk 0:00:22]} 29. Bg5 {[%clk 0:01:46]}  Rh5 {[%clk 0:00:18]} 30. f4 {[%clk 0:01:43]}  Rh2 {[%clk 0:00:03]} 31. d6 {[%clk 0:01:43]}  Rd2+ {[%clk 0:00:03]} 32. Ke5 {[%clk 0:01:43]}  Rc5+ {[%clk 0:00:03]} 33. Ke6 {[%clk 0:01:44]}  Re2+ {[%clk 0:00:03]} 34. Kf6 {[%clk 0:01:45]} 1-0


[Site "https://www.chess.com"]

[Event "Titled Tuesday Blitz April 26 Late 2022"]
[White "Janaszak, Dawid"]
[Black "Demchenko, Anton"]
[WhiteFideId "1119206"]
[BlackFideId "4160258"]
[WhiteElo "2199"]
[BlackElo "2539"]
[Result "0-1"]
[Round "02"]
[TimeControl "180+1"]
[Date "2022.04.26"]
[WhiteClock "0:00:04"]
[BlackClock "0:00:42"]

1. e4 {[%clk 0:03:00]}  e5 {[%clk 0:02:58]} 2. Nf3 {[%clk 0:03:00]}  Nc6 {[%clk 0:02:59]} 3. d4 {[%clk 0:03:00]}  exd4 {[%clk 0:02:59]} 4. Nxd4 {[%clk 0:03:01]}  Bc5 {[%clk 0:02:59]} 5. Nb3 {[%clk 0:03:01]}  Bb6 {[%clk 0:02:59]} 6. Nc3 {[%clk 0:03:01]}  d6 {[%clk 0:02:59]} 7. Qe2 {[%clk 0:03:00]}  a5 {[%clk 0:03:00]} 8. a4 {[%clk 0:02:49]}  Nb4 {[%clk 0:02:59]} 9. Nd5 {[%clk 0:02:17]}  Nxd5 {[%clk 0:02:58]} 10. exd5+ {[%clk 0:02:18]}  Ne7 {[%clk 0:02:58]} 11. Be3 {[%clk 0:02:04]}  O-O {[%clk 0:02:41]} 12. Bxb6 {[%clk 0:02:02]}  cxb6 {[%clk 0:02:42]} 13. O-O-O {[%clk 0:01:44]}  Bd7 {[%clk 0:02:42]} 14. Rd4 {[%clk 0:01:32]}  b5 {[%clk 0:02:39]} 15. axb5 {[%clk 0:00:53]}  a4 {[%clk 0:02:40]} 16. Nd2 {[%clk 0:00:50]}  a3 {[%clk 0:02:40]} 17. bxa3 {[%clk 0:00:50]}  Rxa3 {[%clk 0:02:40]} 18. Nb1 {[%clk 0:00:42]}  Ra1 {[%clk 0:01:59]} 19. Qh5 {[%clk 0:00:29]}  Nf5 {[%clk 0:01:48]} 20. Rb4 {[%clk 0:00:24]}  Qa5 {[%clk 0:01:45]} 21. c3 {[%clk 0:00:18]}  Rc8 {[%clk 0:01:40]} 22. Bc4 {[%clk 0:00:13]}  Nd4 {[%clk 0:01:15]} 23. Re1 {[%clk 0:00:10]}  g6 {[%clk 0:00:59]} 24. Qh4 {[%clk 0:00:08]}  Qxb4 {[%clk 0:00:41]} 25. cxb4 {[%clk 0:00:07]}  Rxc4+ {[%clk 0:00:41]} 26. Kb2 {[%clk 0:00:07]}  Rc2+ {[%clk 0:00:42]} 27. Kxa1 {[%clk 0:00:04]}  Nb3# {[%clk 0:00:42]} 0-1


[Site "https://www.chess.com"]

[Event "Titled Tuesday Blitz April 26 Late 2022"]
[White "Koellner, Ruben Gideon"]
[Black "Vasquez Schroeder, Rodrigo"]
[WhiteFideId "12993093"]
[BlackFideId "3400042"]
[WhiteElo "2595"]
[BlackElo "2561"]
[Result "1/2-1/2"]
[Round "02"]
[TimeControl "180+1"]
[Date "2022.04.26"]
[WhiteClock "0:00:12"]
[BlackClock "0:00:13"]

1. d4 {[%clk 0:03:00]}  Nf6 {[%clk 0:02:59]} 2. Bg5 {[%clk 0:03:01]}  e6 {[%clk 0:02:58]} 3. Nd2 {[%clk 0:03:00]}  h6 {[%clk 0:02:56]} 4. Bh4 {[%clk 0:03:00]}  d6 {[%clk 0:02:53]} 5. e4 {[%clk 0:03:00]}  Nbd7 {[%clk 0:02:53]} 6. Bd3 {[%clk 0:02:59]}  e5 {[%clk 0:02:52]} 7. c3 {[%clk 0:02:58]}  Be7 {[%clk 0:02:51]} 8. Ngf3 {[%clk 0:02:57]}  Nh5 {[%clk 0:02:46]} 9. Bxe7 {[%clk 0:02:56]}  Qxe7 {[%clk 0:02:47]} 10. g3 {[%clk 0:02:57]}  Nhf6 {[%clk 0:02:41]} 11. O-O {[%clk 0:02:56]}  O-O {[%clk 0:02:40]} 12. Qe2 {[%clk 0:02:56]}  Re8 {[%clk 0:02:37]} 13. Rfe1 {[%clk 0:02:55]}  Nf8 {[%clk 0:02:37]} 14. dxe5 {[%clk 0:02:54]}  dxe5 {[%clk 0:02:37]} 15. Kg2 {[%clk 0:02:53]}  Ng6 {[%clk 0:02:37]} 16. Bc2 {[%clk 0:02:44]}  Bd7 {[%clk 0:02:32]} 17. Rad1 {[%clk 0:02:43]}  Rad8 {[%clk 0:02:32]} 18. Nc4 {[%clk 0:02:40]}  Nh5 {[%clk 0:02:23]} 19. Qe3 {[%clk 0:02:35]}  b6 {[%clk 0:02:20]} 20. Bb3 {[%clk 0:02:27]}  Nf6 {[%clk 0:02:19]} 21. Qe2 {[%clk 0:02:25]}  Bc6 {[%clk 0:02:13]} 22. Nfd2 {[%clk 0:02:21]}  a5 {[%clk 0:02:09]} 23. a3 {[%clk 0:02:16]}  a4 {[%clk 0:02:08]} 24. Bc2 {[%clk 0:02:14]}  Rd7 {[%clk 0:02:04]} 25. f3 {[%clk 0:02:06]}  Red8 {[%clk 0:02:02]} 26. Nf1 {[%clk 0:02:06]}  Bb5 {[%clk 0:02:01]} 27. Nfe3 {[%clk 0:02:00]}  Qc5 {[%clk 0:01:57]} 28. Rxd7 {[%clk 0:01:56]}  Rxd7 {[%clk 0:01:56]} 29. Rd1 {[%clk 0:01:55]}  Rxd1 {[%clk 0:01:54]} 30. Bxd1 {[%clk 0:01:56]}  Ne7 {[%clk 0:01:48]} 31. Bc2 {[%clk 0:01:50]}  Bd7 {[%clk 0:01:38]} 32. Qd2 {[%clk 0:01:45]}  b5 {[%clk 0:01:32]} 33. Na5 {[%clk 0:01:39]}  Qb6 {[%clk 0:01:30]} 34. c4 {[%clk 0:01:38]}  c6 {[%clk 0:01:26]} 35. cxb5 {[%clk 0:01:30]}  cxb5 {[%clk 0:01:26]} 36. Qc3 {[%clk 0:01:23]}  Be6 {[%clk 0:01:16]} 37. b3 {[%clk 0:01:20]}  axb3 {[%clk 0:01:13]} 38. Bxb3 {[%clk 0:01:21]}  Nd7 {[%clk 0:01:13]} 39. Bxe6 {[%clk 0:01:18]}  Qxe6 {[%clk 0:01:14]} 40. Nb3 {[%clk 0:01:06]}  Qd6 {[%clk 0:01:11]} 41. Qb4 {[%clk 0:00:56]}  Qxb4 {[%clk 0:01:07]} 42. axb4 {[%clk 0:00:57]}  Nb6 {[%clk 0:01:04]} 43. Nc5 {[%clk 0:00:55]}  Nc6 {[%clk 0:01:04]} 44. Nd3 {[%clk 0:00:54]}  f6 {[%clk 0:01:04]} 45. Nc2 {[%clk 0:00:52]}  Nc4 {[%clk 0:01:03]} 46. Kf2 {[%clk 0:00:51]}  Kf7 {[%clk 0:01:02]} 47. Ke2 {[%clk 0:00:49]}  g6 {[%clk 0:01:00]} 48. Ne3 {[%clk 0:00:45]}  Ke6 {[%clk 0:00:56]} 49. Nd5 {[%clk 0:00:44]}  f5 {[%clk 0:00:52]} 50. Nc3 {[%clk 0:00:43]}  Nd4+ {[%clk 0:00:51]} 51. Kf2 {[%clk 0:00:42]}  Kd6 {[%clk 0:00:52]} 52. h4 {[%clk 0:00:37]}  Ke6 {[%clk 0:00:49]} 53. Nd5 {[%clk 0:00:30]}  fxe4 {[%clk 0:00:44]} 54. fxe4 {[%clk 0:00:31]}  Nd6 {[%clk 0:00:41]} 55. Nc3 {[%clk 0:00:30]}  h5 {[%clk 0:00:39]} 56. Ke3 {[%clk 0:00:25]}  Nc4+ {[%clk 0:00:38]} 57. Kf2 {[%clk 0:00:25]}  Kd6 {[%clk 0:00:39]} 58. Nd5 {[%clk 0:00:24]}  Nc2 {[%clk 0:00:34]} 59. Nc3 {[%clk 0:00:21]}  Nd4 {[%clk 0:00:33]} 60. Nd5 {[%clk 0:00:21]}  Nd2 {[%clk 0:00:31]} 61. Nc3 {[%clk 0:00:20]}  Ke6 {[%clk 0:00:25]} 62. Nc5+ {[%clk 0:00:18]}  Ke7 {[%clk 0:00:23]} 63. Nd3 {[%clk 0:00:19]}  Nc4 {[%clk 0:00:23]} 64. Nd5+ {[%clk 0:00:18]}  Kd6 {[%clk 0:00:23]} 65. Nc3 {[%clk 0:00:19]}  Nb6 {[%clk 0:00:20]} 66. Nc5 {[%clk 0:00:18]}  Nd7 {[%clk 0:00:20]} 67. Nd3 {[%clk 0:00:17]}  Nf8 {[%clk 0:00:19]} 68. Nc5 {[%clk 0:00:15]}  Nfe6 {[%clk 0:00:19]} 69. Nxe6 {[%clk 0:00:15]}  Kxe6 {[%clk 0:00:19]} 70. Ke3 {[%clk 0:00:16]}  Kd6 {[%clk 0:00:18]} 71. Kd3 {[%clk 0:00:14]}  Kc6 {[%clk 0:00:16]} 72. Nd5 {[%clk 0:00:14]}  Kd6 {[%clk 0:00:17]} 73. Nc3 {[%clk 0:00:14]}  Kd7 {[%clk 0:00:16]} 74. Kd2 {[%clk 0:00:12]}  Kd6 {[%clk 0:00:13]} 75. Kd3 {[%clk 0:00:12]} 1/2-1/2


[Site "https://www.chess.com"]

[Event "Titled Tuesday Blitz April 26 Late 2022"]
[White "Korchmar, Vasiliy"]
[Black "Yoo, Christopher Woojin"]
[WhiteFideId "24131750"]
[BlackFideId "30909694"]
[WhiteElo "2370"]
[BlackElo "2105"]
[Result "0-1"]
[Round "02"]
[TimeControl "180+1"]
[Date "2022.04.26"]
[WhiteClock "0:00:15"]
[BlackClock "0:00:17"]

1. e4 {[%clk 0:02:59]}  c5 {[%clk 0:02:56]} 2. Nf3 {[%clk 0:02:59]}  e6 {[%clk 0:02:56]} 3. g3 {[%clk 0:02:57]}  Nc6 {[%clk 0:02:56]} 4. Bg2 {[%clk 0:02:56]}  Nf6 {[%clk 0:02:56]} 5. Qe2 {[%clk 0:02:54]}  Be7 {[%clk 0:02:41]} 6. O-O {[%clk 0:02:53]}  e5 {[%clk 0:02:34]} 7. d3 {[%clk 0:02:52]}  O-O {[%clk 0:02:33]} 8. Nc3 {[%clk 0:02:52]}  d6 {[%clk 0:02:33]} 9. Bg5 {[%clk 0:02:45]}  Bg4 {[%clk 0:02:18]} 10. Bxf6 {[%clk 0:02:34]}  Bxf6 {[%clk 0:02:18]} 11. Nd5 {[%clk 0:02:35]}  Be7 {[%clk 0:02:04]} 12. c3 {[%clk 0:02:30]}  Qd7 {[%clk 0:01:51]} 13. a3 {[%clk 0:02:15]}  Bd8 {[%clk 0:01:14]} 14. Qc2 {[%clk 0:02:07]}  Ne7 {[%clk 0:01:05]} 15. Ne3 {[%clk 0:02:01]}  Bh5 {[%clk 0:00:56]} 16. Nd2 {[%clk 0:01:59]}  f6 {[%clk 0:00:50]} 17. a4 {[%clk 0:01:36]}  Bf7 {[%clk 0:00:49]} 18. Ndc4 {[%clk 0:01:29]}  Bc7 {[%clk 0:00:38]} 19. f4 {[%clk 0:01:26]}  exf4 {[%clk 0:00:37]} 20. gxf4 {[%clk 0:01:26]}  d5 {[%clk 0:00:38]} 21. Nd2 {[%clk 0:01:18]}  d4 {[%clk 0:00:34]} 22. Nec4 {[%clk 0:01:14]}  Ng6 {[%clk 0:00:34]} 23. e5 {[%clk 0:00:58]}  fxe5 {[%clk 0:00:31]} 24. f5 {[%clk 0:00:58]}  Nf4 {[%clk 0:00:29]} 25. Be4 {[%clk 0:00:57]}  Bd5 {[%clk 0:00:25]} 26. Qb3 {[%clk 0:00:30]}  Rxf5 {[%clk 0:00:20]} 27. Nb6 {[%clk 0:00:15]}  Rg5+ {[%clk 0:00:17]} 28. Kh1 {[%clk 0:00:15]}  axb6 {[%clk 0:00:17]} 0-1


[Site "https://www.chess.com"]

[Event "Titled Tuesday Blitz April 26 Late 2022"]
[White "Kozak, Adam"]
[Black "Zherebtsova, Alexandra"]
[WhiteFideId "753246"]
[BlackFideId "24129518"]
[WhiteElo "2459"]
[BlackElo "2025"]
[Result "1-0"]
[Round "02"]
[TimeControl "180+1"]
[Date "2022.04.26"]
[WhiteClock "0:00:08"]
[BlackClock "0:00:03"]

1. e4 {[%clk 0:02:55]}  e5 {[%clk 0:02:53]} 2. f4 {[%clk 0:02:53]}  exf4 {[%clk 0:02:52]} 3. Bc4 {[%clk 0:02:51]}  Ne7 {[%clk 0:02:51]} 4. Nc3 {[%clk 0:02:50]}  c6 {[%clk 0:02:48]} 5. Nge2 {[%clk 0:02:36]}  d5 {[%clk 0:02:40]} 6. exd5 {[%clk 0:02:36]}  cxd5 {[%clk 0:02:36]} 7. Bb5+ {[%clk 0:02:36]}  Nbc6 {[%clk 0:02:35]} 8. Nxf4 {[%clk 0:02:25]}  d4 {[%clk 0:02:31]} 9. Nce2 {[%clk 0:02:24]}  Qb6 {[%clk 0:02:19]} 10. Bxc6+ {[%clk 0:02:24]}  Nxc6 {[%clk 0:02:18]} 11. d3 {[%clk 0:02:23]}  Bb4+ {[%clk 0:02:07]} 12. Bd2 {[%clk 0:02:23]}  Bxd2+ {[%clk 0:02:07]} 13. Qxd2 {[%clk 0:02:23]}  Qxb2 {[%clk 0:02:05]} 14. O-O {[%clk 0:02:22]}  O-O {[%clk 0:02:04]} 15. Nh5 {[%clk 0:02:18]}  h6 {[%clk 0:01:49]} 16. Neg3 {[%clk 0:02:08]}  Qb5 {[%clk 0:01:36]} 17. h4 {[%clk 0:01:49]}  Bg4 {[%clk 0:01:27]} 18. Rab1 {[%clk 0:01:40]}  Qc5 {[%clk 0:01:16]} 19. Nf6+ {[%clk 0:00:59]}  gxf6 {[%clk 0:01:02]} 20. Qxh6 {[%clk 0:00:59]}  f5 {[%clk 0:00:24]} 21. Rxf5 {[%clk 0:00:42]}  Bxf5 {[%clk 0:00:15]} 22. Qg5+ {[%clk 0:00:37]}  Kh7 {[%clk 0:00:13]} 23. Nxf5 {[%clk 0:00:37]}  Qe5 {[%clk 0:00:13]} 24. Rb5 {[%clk 0:00:26]}  Qh8 {[%clk 0:00:07]} 25. Qh5+ {[%clk 0:00:14]}  Kg8 {[%clk 0:00:07]} 26. Qg4+ {[%clk 0:00:15]}  Kh7 {[%clk 0:00:06]} 27. Ne7 {[%clk 0:00:09]}  f5 {[%clk 0:00:03]} 28. Qg6# {[%clk 0:00:08]} 1-0


[Site "https://www.chess.com"]

[Event "Titled Tuesday Blitz April 26 Late 2022"]
[White "Krstulovic, Alex"]
[Black "Chigaev, Maksim"]
[WhiteFideId "760056"]
[BlackFideId "4108116"]
[WhiteElo "2193"]
[BlackElo "2478"]
[Result "0-1"]
[Round "02"]
[TimeControl "180+1"]
[Date "2022.04.26"]
[WhiteClock "0:00:02"]
[BlackClock "0:00:06"]

1. e4 {[%clk 0:03:00]}  c5 {[%clk 0:02:57]} 2. Nc3 {[%clk 0:02:59]}  d6 {[%clk 0:02:56]} 3. g3 {[%clk 0:02:58]}  Nc6 {[%clk 0:02:55]} 4. Bg2 {[%clk 0:02:58]}  g6 {[%clk 0:02:56]} 5. d3 {[%clk 0:02:58]}  Bg7 {[%clk 0:02:56]} 6. f4 {[%clk 0:02:58]}  e6 {[%clk 0:02:53]} 7. Nf3 {[%clk 0:02:57]}  Nge7 {[%clk 0:02:53]} 8. O-O {[%clk 0:02:57]}  O-O {[%clk 0:02:54]} 9. Ne2 {[%clk 0:02:54]}  f5 {[%clk 0:02:52]} 10. c3 {[%clk 0:02:52]}  Rb8 {[%clk 0:02:52]} 11. h3 {[%clk 0:02:51]}  b5 {[%clk 0:02:52]} 12. Be3 {[%clk 0:02:48]}  a5 {[%clk 0:02:52]} 13. Rb1 {[%clk 0:02:45]}  b4 {[%clk 0:02:52]} 14. c4 {[%clk 0:02:44]}  Qd7 {[%clk 0:02:41]} 15. g4 {[%clk 0:02:23]}  Bb7 {[%clk 0:02:35]} 16. Qe1 {[%clk 0:02:10]}  Rbe8 {[%clk 0:02:25]} 17. Ng3 {[%clk 0:01:55]}  a4 {[%clk 0:02:18]} 18. Qf2 {[%clk 0:01:46]}  b3 {[%clk 0:02:04]} 19. axb3 {[%clk 0:01:38]}  axb3 {[%clk 0:02:05]} 20. Nd2 {[%clk 0:01:38]}  Nd4 {[%clk 0:02:01]} 21. Kh2 {[%clk 0:01:32]}  Nec6 {[%clk 0:01:58]} 22. exf5 {[%clk 0:01:29]}  gxf5 {[%clk 0:01:58]} 23. gxf5 {[%clk 0:01:28]}  exf5 {[%clk 0:01:50]} 24. Bd5+ {[%clk 0:01:28]}  Kh8 {[%clk 0:01:50]} 25. Nf3 {[%clk 0:01:25]}  Nxf3+ {[%clk 0:01:19]} 26. Qxf3 {[%clk 0:01:26]}  Na5 {[%clk 0:01:19]} 27. Nh5 {[%clk 0:00:56]}  Rxe3 {[%clk 0:00:58]} 28. Qxe3 {[%clk 0:00:52]}  Bd4 {[%clk 0:00:58]} 29. Qf3 {[%clk 0:00:50]}  Bxd5 {[%clk 0:00:49]} 30. cxd5 {[%clk 0:00:41]}  Qf7 {[%clk 0:00:25]} 31. Ra1 {[%clk 0:00:37]}  Nb7 {[%clk 0:00:15]} 32. Ra7 {[%clk 0:00:34]}  Re8 {[%clk 0:00:15]} 33. Rfa1 {[%clk 0:00:21]}  c4 {[%clk 0:00:11]} 34. dxc4 {[%clk 0:00:19]}  Bxb2 {[%clk 0:00:08]} 35. Rb1 {[%clk 0:00:17]}  Bd4 {[%clk 0:00:08]} 36. Rxb3 {[%clk 0:00:16]}  Bxa7 {[%clk 0:00:06]} 37. Qc3+ {[%clk 0:00:09]}  Kg8 {[%clk 0:00:05]} 38. Nf6+ {[%clk 0:00:06]}  Kf8 {[%clk 0:00:04]} 39. Nxe8 {[%clk 0:00:06]}  Nc5 {[%clk 0:00:03]} 40. Qh8+ {[%clk 0:00:05]}  Ke7 {[%clk 0:00:03]} 41. Re3+ {[%clk 0:00:05]}  Ne4 {[%clk 0:00:02]} 42. Ng7 {[%clk 0:00:04]}  Bxe3 {[%clk 0:00:02]} 43. Qxh7 {[%clk 0:00:04]}  Bxf4+ {[%clk 0:00:03]} 44. Kg2 {[%clk 0:00:03]}  Kf6 {[%clk 0:00:02]} 45. Nh5+ {[%clk 0:00:03]}  Ke7 {[%clk 0:00:03]} 46. Qxf7+ {[%clk 0:00:03]}  Kxf7 {[%clk 0:00:02]} 47. Nxf4 {[%clk 0:00:03]}  Kf6 {[%clk 0:00:02]} 48. Ne2 {[%clk 0:00:03]}  Ke5 {[%clk 0:00:03]} 49. h4 {[%clk 0:00:03]}  f4 {[%clk 0:00:03]} 50. Kf3 {[%clk 0:00:03]}  Nd2+ {[%clk 0:00:03]} 51. Kg4 {[%clk 0:00:04]}  Nxc4 {[%clk 0:00:04]} 52. Nxf4 {[%clk 0:00:03]}  Ne3+ {[%clk 0:00:04]} 53. Kg3 {[%clk 0:00:03]}  Nf5+ {[%clk 0:00:05]} 54. Kg4 {[%clk 0:00:04]}  Nxh4 {[%clk 0:00:06]} 55. Nd3+ {[%clk 0:00:03]}  Kd4 {[%clk 0:00:06]} 56. Kxh4 {[%clk 0:00:03]}  Kxd3 {[%clk 0:00:07]} 57. Kg5 {[%clk 0:00:04]}  Ke4 {[%clk 0:00:07]} 58. Kg4 {[%clk 0:00:03]}  Kxd5 {[%clk 0:00:07]} 59. Kf3 {[%clk 0:00:04]}  Kd4 {[%clk 0:00:08]} 60. Kf2 {[%clk 0:00:04]}  d5 {[%clk 0:00:07]} 61. Ke1 {[%clk 0:00:03]}  Kc3 {[%clk 0:00:07]} 62. Ke2 {[%clk 0:00:02]}  d4 {[%clk 0:00:06]} 63. Ke1 {[%clk 0:00:02]}  Kc2 {[%clk 0:00:06]} 0-1


[Site "https://www.chess.com"]

[Event "Titled Tuesday Blitz April 26 Late 2022"]
[White "Ladan, Nicholas"]
[Black "Le Goff, Ronan"]
[WhiteFideId "30918855"]
[BlackFideId "612073"]
[WhiteElo "2167"]
[BlackElo "2276"]
[Result "0-1"]
[Round "02"]
[TimeControl "180+1"]
[Date "2022.04.26"]
[WhiteClock "0:00:59"]
[BlackClock "0:01:37"]

1. Nf3 {[%clk 0:03:00]}  Nc6 {[%clk 0:02:54]} 2. b3 {[%clk 0:03:01]}  e5 {[%clk 0:02:53]} 3. Bb2 {[%clk 0:03:01]}  e4 {[%clk 0:02:53]} 4. Nd4 {[%clk 0:03:01]}  Nxd4 {[%clk 0:02:53]} 5. Bxd4 {[%clk 0:03:01]}  Nf6 {[%clk 0:02:52]} 6. e3 {[%clk 0:03:01]}  d5 {[%clk 0:02:52]} 7. c4 {[%clk 0:03:00]}  c6 {[%clk 0:02:51]} 8. Bb2 {[%clk 0:03:00]}  Bd6 {[%clk 0:02:50]} 9. d3 {[%clk 0:03:00]}  O-O {[%clk 0:02:49]} 10. dxe4 {[%clk 0:02:59]}  Nxe4 {[%clk 0:02:49]} 11. Bd3 {[%clk 0:02:53]}  Bb4+ {[%clk 0:02:45]} 12. Kf1 {[%clk 0:02:52]}  f5 {[%clk 0:02:40]} 13. a3 {[%clk 0:02:51]}  Qh4 {[%clk 0:02:29]} 14. Qe2 {[%clk 0:02:32]}  Bd6 {[%clk 0:02:28]} 15. cxd5 {[%clk 0:02:27]}  cxd5 {[%clk 0:02:28]} 16. Nd2 {[%clk 0:02:23]}  Nxd2+ {[%clk 0:02:01]} 17. Qxd2 {[%clk 0:02:24]}  f4 {[%clk 0:02:02]} 18. e4 {[%clk 0:02:02]}  f3 {[%clk 0:01:54]} 19. gxf3 {[%clk 0:01:53]}  Rxf3 {[%clk 0:01:47]} 20. e5 {[%clk 0:01:47]}  Bh3+ {[%clk 0:01:44]} 21. Ke1 {[%clk 0:01:44]}  Bc5 {[%clk 0:01:43]} 22. Bxh7+ {[%clk 0:01:08]}  Kxh7 {[%clk 0:01:38]} 23. Qc2+ {[%clk 0:01:05]}  Qe4+ {[%clk 0:01:36]} 24. Qxe4+ {[%clk 0:00:59]}  dxe4 {[%clk 0:01:37]} 0-1


[Site "https://www.chess.com"]

[Event "Titled Tuesday Blitz April 26 Late 2022"]
[White "Leitao, Rafael"]
[Black "Jobava, Baadur"]
[WhiteFideId "2101246"]
[BlackFideId "13601520"]
[WhiteElo "2609"]
[BlackElo "2617"]
[Result "0-1"]
[Round "02"]
[TimeControl "180+1"]
[Date "2022.04.26"]
[WhiteClock "0:00:19"]
[BlackClock "0:01:04"]

1. e4 {[%clk 0:02:57]}  e6 {[%clk 0:02:56]} 2. d4 {[%clk 0:02:52]}  d5 {[%clk 0:02:55]} 3. Nc3 {[%clk 0:02:51]}  dxe4 {[%clk 0:02:55]} 4. Nxe4 {[%clk 0:02:51]}  Bd7 {[%clk 0:02:56]} 5. Nf3 {[%clk 0:02:48]}  Bc6 {[%clk 0:02:57]} 6. Bd3 {[%clk 0:02:46]}  Nd7 {[%clk 0:02:57]} 7. O-O {[%clk 0:02:45]}  Ngf6 {[%clk 0:02:57]} 8. Ned2 {[%clk 0:02:42]}  b6 {[%clk 0:02:48]} 9. b3 {[%clk 0:02:40]}  Bb7 {[%clk 0:02:47]} 10. Bb2 {[%clk 0:02:41]}  g6 {[%clk 0:02:44]} 11. c4 {[%clk 0:02:33]}  Bg7 {[%clk 0:02:44]} 12. Qe2 {[%clk 0:02:23]}  O-O {[%clk 0:02:43]} 13. Rad1 {[%clk 0:02:21]}  Re8 {[%clk 0:02:43]} 14. Ne4 {[%clk 0:02:19]}  a5 {[%clk 0:02:34]} 15. Ne5 {[%clk 0:02:10]}  a4 {[%clk 0:02:31]} 16. Ng5 {[%clk 0:02:09]}  Nxe5 {[%clk 0:02:26]} 17. dxe5 {[%clk 0:02:06]}  Nd7 {[%clk 0:02:24]} 18. Qe3 {[%clk 0:01:13]}  axb3 {[%clk 0:02:20]} 19. axb3 {[%clk 0:01:13]}  Ra2 {[%clk 0:02:20]} 20. Rd2 {[%clk 0:01:11]}  Rxb2 {[%clk 0:02:19]} 21. Rxb2 {[%clk 0:01:09]}  Nxe5 {[%clk 0:02:19]} 22. Rd2 {[%clk 0:01:01]}  Qe7 {[%clk 0:02:01]} 23. Be4 {[%clk 0:00:58]}  Bc8 {[%clk 0:01:55]} 24. Nf3 {[%clk 0:00:52]}  Ng4 {[%clk 0:01:51]} 25. Qe2 {[%clk 0:00:48]}  Qc5 {[%clk 0:01:43]} 26. Rfd1 {[%clk 0:00:45]}  Bf6 {[%clk 0:01:35]} 27. h3 {[%clk 0:00:45]}  Nh6 {[%clk 0:01:35]} 28. Qe3 {[%clk 0:00:42]}  Qxe3 {[%clk 0:01:33]} 29. fxe3 {[%clk 0:00:43]}  Nf5 {[%clk 0:01:33]} 30. Kf2 {[%clk 0:00:42]}  Nd6 {[%clk 0:01:32]} 31. Bc6 {[%clk 0:00:42]}  Rf8 {[%clk 0:01:31]} 32. g4 {[%clk 0:00:42]}  h6 {[%clk 0:01:29]} 33. h4 {[%clk 0:00:39]}  Kg7 {[%clk 0:01:30]} 34. g5 {[%clk 0:00:39]}  hxg5 {[%clk 0:01:30]} 35. hxg5 {[%clk 0:00:40]}  Be7 {[%clk 0:01:30]} 36. Rh1 {[%clk 0:00:39]}  Nf5 {[%clk 0:01:28]} 37. Be4 {[%clk 0:00:40]}  Bb4 {[%clk 0:01:25]} 38. Rc2 {[%clk 0:00:37]}  Nd6 {[%clk 0:01:23]} 39. Bc6 {[%clk 0:00:36]}  Bc5 {[%clk 0:01:22]} 40. Nd4 {[%clk 0:00:33]}  e5 {[%clk 0:01:21]} 41. Nb5 {[%clk 0:00:30]}  Nxb5 {[%clk 0:01:13]} 42. cxb5 {[%clk 0:00:30]}  Bf5 {[%clk 0:01:12]} 43. Rd2 {[%clk 0:00:30]}  Be7 {[%clk 0:01:07]} 44. Rg1 {[%clk 0:00:28]}  Rh8 {[%clk 0:01:06]} 45. Bd7 {[%clk 0:00:25]}  Be4 {[%clk 0:01:06]} 46. Ke1 {[%clk 0:00:19]}  Bb4 {[%clk 0:01:06]} 47. Bc6 {[%clk 0:00:19]}  Bxc6 {[%clk 0:01:04]} 48. bxc6 {[%clk 0:00:19]}  Rh2 {[%clk 0:01:04]} 0-1


[Site "https://www.chess.com"]